bitfinex/quotes_SOLUSD_20241218
["timestamp","ask_amount","ask_price","bid_price","bid_amount"]
[1734518728170,9.00408692,217.14,217.07,9.00408692]
[1734518728554,0.5604998,217.16,217.07,9.00408692]
[1734518728752,9.00408692,217.14,217.07,9.00408692]
[1734518730473,9.00408692,217.14,217.06,0.12549]
[1734518730654,9.00408692,217.14,217.07,9.00408692]
[1734518734483,9.00408692,217.14,217.06,0.81633936]
[1734518734781,9.00408692,217.14,217.06,9.82042628]
[1734518736875,9.00408692,217.13,217.06,0.81633936]
[1734518737080,9.00408692,217.13,217.06,9.82042628]
[1734518742879,9.00408692,217.12,217.05,1.6181]
[1734518743080,9.00408692,217.11,217.05,1.6181]
[1734518745493,9.00408692,217.1,217.04,9.00408692]
[1734518745960,9.00408692,217.09,217.0,1.538]
[1734518746165,9.00408692,217.08,217.02,9.00408692]
[1734518747172,9.00408692,217.08,217.03,0.12549]
[1734518748299,9.00408692,217.09,217.03,0.12549]
[1734518752192,9.00408692,217.08,217.01,9.12957692]
[1734518752373,9.00408692,217.06,217.01,0.12549]
[1734518752570,9.00408692,217.05,216.97,0.69110047]
[1734518752776,9.00408692,217.02,216.95,1.5204]
[1734518752980,9.00408692,217.02,216.95,10.52448692]
[1734518753392,9.00408692,217.03,216.96,9.00408692]
[1734518754181,36.4918,217.08,216.95,1.5204]
[1734518754182,9.00408692,217.02,216.95,1.5204]
[1734518754385,9.00408692,217.02,216.96,9.00408692]
[1734518755381,9.00408692,217.02,216.96,0.12549]
[1734518755582,9.00408692,217.02,216.92,0.6912487]
[1734518755583,9.00408692,217.01,216.94,9.00408692]
[1734518756001,9.00408692,217.01,216.95,0.12549]
[1734518756179,9.00408692,217.01,216.94,9.00408692]
[1734518757888,20.0,217.04,216.95,9.00408692]
[1734518758089,9.00408692,217.02,216.95,9.00408692]
[1734518758500,9.00408692,217.01,216.92,0.12549]
[1734518758684,51.466884,217.07,216.9,1.6338]
[1734518758685,9.00408692,216.98,216.9,1.6338]
[1734518758890,9.00408692,216.98,216.91,9.00408692]
[1734518759112,9.00408692,216.98,216.9,1.6338]
[1734518759296,9.00408692,216.98,216.92,0.12549]
[1734518759496,9.00408692,216.97,216.92,0.12549]
[1734518761391,9.00408692,216.97,216.91,9.00408692]
[1734518761392,9.00408692,216.97,216.9,1.6338]
[1734518761714,6.3796,217.01,216.81,36.01634768]
[1734518761715,9.00408692,216.96,216.89,9.00408692]
[1734518762217,9.00408692,216.97,216.9,9.00408692]
[1734518763096,20.0,216.98,216.91,9.00408692]
[1734518763448,1.6387,217.03,216.95,9.00408692]
[1734518763723,1.6387,217.03,216.92,0.69143593]
[1734518763724,6.2044,217.06,216.96,9.12957692]
[1734518763911,9.00408692,217.02,216.96,0.12549]
[1734518765620,6.2044,217.06,216.97,0.12549]
[1734518765797,9.00408692,217.03,216.97,0.12549]
[1734518766798,6.2044,217.06,216.95,9.00408692]
[1734518766799,9.00408692,217.02,216.95,9.00408692]
[1734518767306,9.00408692,217.02,216.96,0.12549]
[1734518771096,6.2044,217.06,216.96,0.12549]
[1734518771419,9.00408692,217.02,216.96,0.12549]
[1734518771806,9.00408692,217.01,216.95,0.12549]
[1734518780227,6.2044,217.06,216.97,9.00408692]
[1734518780428,6.2044,217.06,216.99,0.12549]
[1734518780623,21.5914,217.08,216.99,0.12549]
[1734518780805,9.00408692,217.05,216.99,0.12549]
[1734518781815,21.5914,217.08,216.99,0.12549]
[1734518782015,9.00408692,217.05,216.99,0.12549]
[1734518782836,1.5914,217.08,216.99,0.12549]
[1734518783014,9.00408692,217.07,217.0,9.12957692]
[1734518783334,9.00408692,217.04,216.96,0.69108814]
[1734518783534,9.00408692,217.03,216.96,9.00408692]
[1734518783705,30.0,217.09,216.95,134.8]
[1734518783706,9.00408692,217.02,216.95,9.00408692]
[1734518783907,9.00408692,217.01,216.92,1.6142]
[1734518784240,9.00408692,217.0,216.93,9.00408692]
[1734518784544,9.00408692,217.01,216.94,9.00408692]
[1734518786826,20.0,217.05,216.96,0.12549]
[1734518787026,9.00408692,217.02,216.96,0.12549]
[1734518787324,20.0,217.05,216.96,9.12957692]
[1734518787525,9.00408692,217.03,216.96,0.12549]
[1734518788011,20.0,217.05,216.96,0.12549]
[1734518788212,9.00408692,217.02,216.96,0.12549]
[1734518788721,20.0,217.05,216.96,9.00408692]
[1734518788921,9.00408692,217.02,216.96,0.12549]
[1734518790246,9.00408692,217.03,216.96,9.00408692]
[1734518790412,9.00408692,217.03,216.94,0.12549]
[1734518790806,20.0,217.06,216.99,0.12549]
[1734518791229,9.00408692,217.05,216.99,0.12549]
[1734518791435,9.00408692,217.04,216.98,0.12549]
[1734518794631,9.00408692,217.08,217.02,0.12549]
[1734518795345,9.00408692,217.07,217.01,0.12549]
[1734518796826,9.00408692,217.07,217.0,0.12549]
[1734518797020,7.7386,217.11,217.02,0.12549]
[1734518797239,9.00408692,217.07,217.02,0.12549]
[1734518797652,9.00408692,217.07,217.01,0.12549]
[1734518798033,9.00408692,217.07,217.03,0.12549]
[1734518798229,7.7386,217.11,217.03,0.12549]
[1734518798425,9.00408692,217.08,217.03,0.12549]
[1734518798825,7.7386,217.11,217.03,0.12549]
[1734518798826,9.00408692,217.07,217.03,0.12549]
[1734518799820,8.94861893,217.07,217.03,0.12549]
[1734518802051,9.00408692,217.05,217.02,1.0]
[1734518802646,9.00408692,217.04,217.02,1.0]
[1734518802833,9.00408692,217.03,217.02,1.0]
[1734518804037,20.0,217.07,217.02,1.0]
[1734518804549,9.00408692,217.03,217.02,1.0]
[1734518810336,20.0,217.05,217.02,1.0]
[1734518810538,9.00408692,217.03,217.02,1.0]
[1734518814664,51.83979788,217.07,217.02,1.0]
[1734518814873,9.00408692,217.04,217.02,1.0]
[1734518815059,20.0,217.07,217.02,1.0]
[1734518815060,9.00408692,217.03,217.02,1.0]
[1734518817856,9.00408692,217.04,217.02,1.0]
[1734518818963,29.004087,217.07,217.02,1.0]
[1734518818964,9.00408692,217.05,217.02,1.0]
[1734518819978,9.00408692,217.04,217.02,1.0]
[1734518820278,38.00817392,217.07,217.02,1.0]
[1734518820769,9.00408692,217.04,217.02,1.0]
[1734518822765,20.0,217.05,217.02,1.0]
[1734518822941,29.00408692,217.05,217.02,1.0]
[1734518824145,20.0,217.07,217.02,1.0]
[1734518824341,9.00408692,217.05,217.02,1.0]
[1734518826988,20.0,217.08,217.02,10.00408692]
[1734518827182,9.00408692,217.09,217.03,0.12549]
[1734518827487,9.00408692,217.08,217.03,0.12549]
[1734518828160,1.83110688,217.14,217.03,9.12957692]
[1734518828352,9.00408692,217.14,217.07,9.00408692]
[1734518828555,9.00408692,217.12,217.04,0.12549]
[1734518828757,9.00408692,217.11,217.05,9.00408692]
[1734518828959,9.00408692,217.13,217.06,9.00408692]
[1734518829386,20.0,217.13,217.08,9.00408692]
[1734518829589,20.0,217.13,217.08,0.12549]
[1734518830084,9.00408692,217.13,217.08,0.12549]
[1734518830585,0.5604998,217.16,217.09,9.12957692]
[1734518830747,9.56458672,217.16,217.09,9.12957692]
[1734518831432,0.5604998,217.16,217.11,0.12549]
[1734518832400,0.5604998,217.16,217.12,0.12549]
[1734518832611,0.5604998,217.16,217.12,9.12957692]
[1734518835237,0.5604998,217.16,217.14,0.12549]
[1734518836337,0.5604998,217.16,217.12,9.00408692]
[1734518836338,0.5604998,217.16,217.13,0.12549]
[1734518838063,0.5604998,217.16,217.14,0.12549]
[1734518839087,0.5604998,217.16,217.12,9.12957692]
[1734518839385,0.5604998,217.16,217.14,0.12549]
[1734518839541,81.7,217.35,217.14,0.12549]
[1734518839542,27.66,217.32,217.16,0.12549]
[1734518839740,16.88625696,217.33,217.2,0.12549]
[1734518839960,10.28845696,217.33,217.2,0.12549]
[1734518840283,9.00408692,217.28,217.21,9.12957692]
[1734518840484,9.00408692,217.29,217.2,0.12549]
[1734518840773,29.1738,217.36,217.22,0.12549]
[1734518841159,9.00408692,217.27,217.17,20.0]
[1734518841347,9.00408692,217.24,217.15,2.22806858]
[1734518841662,30.0,217.3,217.15,1.5376]
[1734518841663,9.00408692,217.21,217.15,1.5376]
[1734518842056,9.00408692,217.19,217.15,1.5376]
[1734518842266,36.01634768,217.25,217.12,23.776884]
[1734518842267,9.00408692,217.16,217.12,23.776884]
[1734518842477,9.00408692,217.15,217.1,1.5094]
[1734518842682,9.00408692,217.13,217.03,1.5094]
[1734518842883,9.00408692,217.12,217.05,9.00408692]
[1734518843063,9.00408692,217.1,217.04,9.00408692]
[1734518843268,9.00408692,217.08,217.03,1.5094]
[1734518843566,25.294184,217.19,217.02,1.0]
[1734518843567,9.00408692,217.05,217.02,1.0]
[1734518843765,7.9448,217.11,217.02,1.0]
[1734518844199,9.00408692,217.04,217.02,1.0]
[1734518844407,20.0,217.08,217.02,1.0]
[1734518844408,9.00408692,217.03,217.02,1.0]
[1734518844612,20.0,217.08,217.02,1.0]
[1734518844613,9.00408692,217.04,217.02,1.0]
[1734518844891,20.0,217.08,217.02,1.0]
[1734518845199,9.00408692,217.06,217.02,1.0]
[1734518847071,20.0,217.08,217.02,1.0]
[1734518847278,29.00408692,217.08,217.03,0.12549]
[1734518847591,9.00408692,217.09,217.03,0.12549]
[1734518848491,9.00408692,217.15,217.08,9.00408692]
[1734518848801,9.00408692,217.14,217.08,0.12549]
[1734518849311,30.0,217.21,217.09,0.12549]
[1734518849601,9.00408692,217.15,217.09,9.12957692]
[1734518850225,9.00408692,217.17,217.11,0.12549]
[1734518850387,13.99590439,217.18,217.11,14.12139439]
[1734518851303,13.99590439,217.17,217.11,0.12549]
[1734518853009,13.99590439,217.19,217.12,13.99590439]
[1734518853192,13.99590439,217.18,217.13,0.12549]
[1734518853393,13.99590439,217.18,217.11,13.99590439]
[1734518853746,13.99590439,217.23,217.17,0.12549]
[1734518854722,13.99590439,217.23,217.18,0.12549]
[1734518854889,1.5324,217.27,217.18,0.12549]
[1734518855211,13.99590439,217.23,217.18,0.12549]
[1734518856111,13.99590439,217.24,217.18,0.12549]
[1734518858100,13.99590439,217.25,217.19,0.12549]
[1734518858713,13.99590439,217.26,217.19,13.99590439]
[1734518861116,13.99590439,217.25,217.19,0.12549]
[1734518862632,13.99590439,217.24,217.18,0.12549]
[1734518862802,13.99590439,217.25,217.18,14.12139439]
[1734518863002,13.99590439,217.25,217.19,13.99590439]
[1734518863301,13.99590439,217.27,217.21,0.12549]
[1734518863501,49.05716189,217.32,217.21,14.12139439]
[1734518863502,13.99590439,217.28,217.21,14.12139439]
[1734518864427,13.99590439,217.28,217.23,0.12549]
[1734518864839,13.99590439,217.29,217.23,0.12549]
[1734518865019,13.99590439,217.3,217.24,0.12549]
[1734518866722,13.99590439,217.29,217.24,0.12549]
[1734518867817,13.99590439,217.3,217.24,0.12549]
[1734518868957,13.99590439,217.3,217.25,0.12549]
[1734518869527,13.99590439,217.31,217.25,0.12549]
[1734518870425,13.99590439,217.28,217.21,13.99590439]
[1734518870837,6.5645,217.34,217.22,0.12549]
[1734518870838,13.99590439,217.27,217.22,0.12549]
[1734518871942,8.9494833,217.27,217.22,0.12549]
[1734518872934,8.9494833,217.28,217.22,9.0749733]
[1734518873134,8.9494833,217.28,217.23,0.12549]
[1734518873456,8.9494833,217.27,217.2,8.9494833]
[1734518874358,8.9494833,217.26,217.2,8.9494833]
[1734518876839,20.0,217.29,217.23,8.9494833]
[1734518877045,8.9494833,217.29,217.23,0.12549]
[1734518877349,8.9494833,217.27,217.2,8.9494833]
[1734518882761,8.9494833,217.26,217.2,0.12549]
[1734518882965,8.9494833,217.27,217.2,8.9494833]
[1734518885966,8.9494833,217.27,217.2,8.9494833]
[1734518886965,57.66,217.32,217.2,8.9494833]
[1734518887180,8.9494833,217.27,217.2,8.9494833]
[1734518887637,8.9494833,217.23,217.16,1.5835]
[1734518887865,8.9494833,217.22,217.15,8.9494833]
[1734518888080,8.9494833,217.21,217.14,8.9494833]
[1734518888777,8.9494833,217.22,217.16,0.12549]
[1734518889900,8.9494833,217.22,217.11,1.6327]
[1734518889901,8.9494833,217.19,217.11,1.6327]
[1734518890205,8.9494833,217.21,217.15,8.9494833]
[1734518890489,20.0,217.22,217.14,8.9494833]
[1734518890668,8.9494833,217.2,217.14,8.9494833]
[1734518892092,8.9494833,217.17,217.11,1.6327]
[1734518892297,8.9494833,217.15,217.09,8.9494833]
[1734518893707,8.9494833,217.15,217.07,0.12549]
[1734518893883,8.9494833,217.15,217.09,8.9494833]
[1734518895803,6.2333,217.19,217.12,8.9494833]
[1734518895983,8.9494833,217.18,217.12,8.9494833]
[1734518896188,15.1827833,217.19,217.12,8.9494833]
[1734518896396,8.9494833,217.21,217.14,8.9494833]
[1734518896604,8.9494833,217.19,217.13,0.12549]
[1734518896824,8.9494833,217.19,217.13,9.0749733]
[1734518897113,8.9494833,217.2,217.13,9.0749733]
[1734518900015,8.9494833,217.19,217.1,0.12549]
[1734518900310,8.9494833,217.2,217.14,8.9494833]
[1734518900523,8.9494833,217.2,217.13,9.0749733]
[1734518902784,8.9494833,217.19,217.13,9.0749733]
[1734518903400,8.9494833,217.19,217.13,0.12549]
[1734518904111,8.9494833,217.19,217.13,8.9494833]
[1734518907237,8.9494833,217.2,217.13,8.9494833]
[1734518907526,8.9494833,217.21,217.14,9.0749733]
[1734518910641,23.776884,217.23,217.14,9.0749733]
[1734518910807,8.9494833,217.21,217.14,9.0749733]
[1734518913636,8.9494833,217.2,217.14,0.12549]
[1734518913808,8.9494833,217.21,217.14,0.12549]
[1734518914434,6.06,217.24,217.14,8.9494833]
[1734518914610,6.06,217.24,217.15,9.0749733]
[1734518914611,8.9494833,217.22,217.15,9.0749733]
[1734518915701,8.9494833,217.22,217.15,0.12549]
[1734518915919,6.06,217.24,217.1,6.92131647]
[1734518915920,8.9494833,217.2,217.12,8.9494833]
[1734518916121,8.9494833,217.18,217.1,6.2306]
[1734518916314,8.9494833,217.18,217.11,8.9494833]
[1734518917213,8.9494833,217.19,217.13,0.12549]
[1734518917629,8.9494833,217.19,217.12,8.9494833]
[1734518917819,8.9494833,217.18,217.11,8.9494833]
[1734518919332,8.9494833,217.18,217.12,8.9494833]
[1734518919710,8.9494833,217.18,217.12,0.12549]
[1734518920431,8.9494833,217.19,217.13,8.9494833]
[1734518920630,8.9494833,217.19,217.12,8.9494833]
[1734518920826,8.9494833,217.18,217.12,0.12549]
[1734518921233,8.9494833,217.18,217.11,8.9494833]
[1734518921532,8.9494833,217.15,217.08,8.9494833]
[1734518922238,8.9494833,217.15,217.09,0.12549]
[1734518922436,8.9494833,217.14,217.09,0.12549]
[1734518922612,8.9494833,217.12,217.06,1.5552]
[1734518922814,8.9494833,217.12,217.06,10.5046833]
[1734518924703,8.9494833,217.12,217.06,8.9494833]
[1734518927226,8.9494833,217.08,217.02,9.9494833]
[1734518928233,8.9494833,217.08,217.03,0.12549]
[1734518929017,8.9494833,217.09,217.03,9.0749733]
[1734518929726,8.9494833,217.1,217.04,8.9494833]
[1734518929925,8.9494833,217.1,217.03,9.0749733]
[1734518930935,8.9494833,217.09,217.03,9.0749733]
[1734518934141,8.9494833,217.08,217.02,1.0]
[1734518934621,8.9494833,217.08,217.02,9.9494833]
[1734518934821,8.9494833,217.08,217.02,1.0]
[1734518935644,8.9494833,217.08,217.02,9.9494833]
[1734518937041,20.0,217.1,217.03,9.0749733]
[1734518937248,8.9494833,217.1,217.04,8.9494833]
[1734518937446,23.776884,217.15,217.06,8.9494833]
[1734518937627,8.9494833,217.13,217.06,8.9494833]
[1734518937827,8.9494833,217.12,217.05,8.9494833]
[1734518938249,8.9494833,217.11,217.05,8.9494833]
[1734518939042,8.9494833,217.11,217.05,0.12549]
[1734518940272,8.9494833,217.13,217.06,8.9494833]
[1734518941131,8.9494833,217.12,217.05,8.9494833]
[1734518941540,27.66,217.14,217.05,8.9494833]
[1734518941849,8.9494833,217.12,217.05,8.9494833]
[1734518942236,8.89405873,217.12,217.05,8.9494833]
[1734518943036,23.776884,217.15,217.06,0.12549]
[1734518943275,8.9494833,217.13,217.07,8.9494833]
[1734518944481,8.9494833,217.13,217.06,8.9494833]
[1734518944687,8.9494833,217.12,217.05,8.9494833]
[1734518945342,8.9494833,217.11,217.04,9.0749733]
[1734518945787,8.9494833,217.1,217.04,0.12549]
[1734518946084,8.9494833,217.08,217.02,1.0]
[1734518946690,8.9494833,217.09,217.02,9.9494833]
[1734518946843,23.776884,217.11,217.02,9.9494833]
[1734518947042,8.9494833,217.09,217.02,9.9494833]
[1734518948878,8.9494833,217.08,217.02,1.0]
[1734518950165,8.9494833,217.08,217.02,9.9494833]
[1734518950360,1.85894602,217.13,217.02,9.9494833]
[1734518950695,8.9494833,217.12,217.05,8.9494833]
[1734518950992,27.66,217.15,217.05,8.9494833]
[1734518950993,8.9494833,217.11,217.05,0.12549]
[1734518951971,8.9494833,217.11,217.05,9.0749733]
[1734518952178,8.9494833,217.12,217.05,8.9494833]
[1734518953254,8.9494833,217.11,217.05,0.12549]
[1734518954556,8.9494833,217.11,217.03,0.12549]
[1734518954872,8.9494833,217.11,217.05,0.12549]
[1734518955051,8.9494833,217.12,217.05,9.0749733]
[1734518957262,8.9494833,217.11,217.05,0.12549]
[1734518958873,8.9494833,217.12,217.05,8.9494833]
[1734518959077,8.9494833,217.12,217.05,10.5562833]
[1734518959284,8.9494833,217.13,217.06,8.9494833]
[1734518959480,27.66,217.2,217.1,0.12549]
[1734518959694,8.9494833,217.18,217.11,8.9494833]
[1734518961078,8.9494833,217.18,217.12,0.12549]
[1734518961273,27.66,217.25,217.14,8.9494833]
[1734518961478,8.9494833,217.22,217.15,9.0749733]
[1734518961696,8.9494833,217.23,217.16,8.9494833]
[1734518961882,8.9494833,217.23,217.17,0.12549]
[1734518962059,8.9494833,217.22,217.17,0.12549]
[1734518962764,8.9494833,217.22,217.16,0.12549]
[1734518963976,8.9494833,217.2,217.13,1.6155]
[1734518964206,8.9494833,217.19,217.13,10.5649833]
[1734518964373,8.9494833,217.19,217.14,0.12549]
[1734518965962,8.9494833,217.18,217.11,8.9494833]
[1734518966170,8.9494833,217.17,217.11,8.9494833]
[1734518966372,8.9494833,217.18,217.11,8.9494833]
[1734518967569,8.9494833,217.18,217.09,0.12549]
[1734518967896,8.9494833,217.18,217.11,8.9494833]
[1734518969517,8.9494833,217.18,217.09,0.12549]
[1734518969686,8.9494833,217.18,217.11,8.9494833]
[1734518970494,8.9494833,217.19,217.12,8.9494833]
[1734518970700,8.9494833,217.19,217.13,9.0749733]
[1734518970886,23.776884,217.24,217.14,8.9494833]
[1734518970887,28.9494833,217.21,217.14,8.9494833]
[1734518971069,8.9494833,217.2,217.14,8.9494833]
[1734518971504,8.9494833,217.2,217.14,0.12549]
[1734518972478,20.0,217.24,217.15,0.12549]
[1734518972680,8.9494833,217.22,217.15,9.0749733]
[1734518973409,8.9494833,217.23,217.17,0.12549]
[1734518973998,8.9494833,217.22,217.16,0.12549]
[1734518974708,38.40415663,217.28,217.16,0.12549]
[1734518974709,20.0,217.25,217.16,0.12549]
[1734518974883,8.9494833,217.22,217.16,0.12549]
[1734518980804,8.9494833,217.23,217.16,0.12549]
[1734518981305,20.0,217.25,217.17,8.9494833]
[1734518981511,28.9494833,217.25,217.18,8.9494833]
[1734518981715,8.9494833,217.25,217.18,8.9494833]
[1734518982016,8.9494833,217.24,217.17,8.9494833]
[1734518984312,6.5956,217.28,217.19,8.9494833]
[1734518984818,8.9494833,217.26,217.19,8.9494833]
[1734518985336,6.5956,217.28,217.19,8.9494833]
[1734518985494,8.9494833,217.27,217.2,8.9494833]
[1734518986420,20.0,217.31,217.21,8.9494833]
[1734518986908,8.9494833,217.29,217.22,8.9494833]
[1734518988682,8.9494833,217.3,217.24,8.9494833]
[1734518989086,8.9494833,217.31,217.24,8.9494833]
[1734518989487,8.9494833,217.3,217.23,8.9494833]
[1734518990005,8.9494833,217.3,217.24,8.9494833]
[1734518990816,8.9494833,217.31,217.24,8.9494833]
[1734518991016,6.1215,217.34,217.25,8.9494833]
[1734518991322,8.9494833,217.31,217.25,8.9494833]
[1734518991614,8.9494833,217.33,217.26,8.9494833]
[1734518991792,8.9494833,217.32,217.26,8.9494833]
[1734518992597,8.9494833,217.29,217.19,1.5295]
[1734518992808,8.9494833,217.29,217.23,8.9494833]
[1734518994397,8.9494833,217.3,217.24,8.9494833]
[1734518994713,8.9494833,217.3,217.23,8.9494833]
[1734518995391,8.9494833,217.29,217.23,8.9494833]
[1734518995803,8.9494833,217.3,217.23,8.9494833]
[1734518997304,8.9494833,217.29,217.2,0.12549]
[1734518997513,8.9494833,217.29,217.23,8.9494833]
[1734518997702,8.9494833,217.3,217.24,8.9494833]
[1734518999199,8.9494833,217.29,217.2,0.12549]
[1734518999428,8.9494833,217.29,217.23,8.9494833]
[1734519000027,8.9494833,217.29,217.23,8.65356856]
[1734519000623,8.9494833,217.29,217.2,0.12549]
[1734519001009,8.9494833,217.29,217.23,8.9494833]
[1734519001626,8.9494833,217.27,217.19,21.5295]
[1734519001827,8.9494833,217.27,217.2,8.9494833]
[1734519002196,8.9494833,217.26,217.19,10.4789833]
[1734519002529,8.9494833,217.26,217.19,8.9494833]
[1734519002827,8.9494833,217.25,217.14,1.6223]
[1734519003125,8.9494833,217.25,217.18,8.9494833]
[1734519003710,8.9494833,217.25,217.19,8.9494833]
[1734519004111,8.9494833,217.24,217.17,8.9494833]
[1734519004315,8.9494833,217.24,217.18,8.9494833]
[1734519005138,8.9494833,217.23,217.17,8.9494833]
[1734519005324,8.9494833,217.23,217.12,0.69061838]
[1734519005325,8.9494833,217.2,217.13,8.9494833]
[1734519006326,8.9494833,217.19,217.13,8.9494833]
[1734519007208,6.428,217.24,217.13,8.9494833]
[1734519007505,8.9494833,217.2,217.13,8.9494833]
[1734519008119,8.9494833,217.19,217.13,8.9494833]
[1734519010231,8.9494833,217.2,217.14,8.9494833]
[1734519011639,28.9494833,217.21,217.14,8.9494833]
[1734519012024,8.9494833,217.2,217.14,8.9494833]
[1734519017021,8.9494833,217.2,217.13,8.9494833]
[1734519017644,8.9494833,217.21,217.15,8.9494833]
[1734519017819,8.9494833,217.21,217.14,8.9494833]
[1734519018157,8.9494833,217.2,217.14,8.9494833]
[1734519018441,8.9494833,217.2,217.13,8.9494833]
[1734519018918,8.9494833,217.2,217.1,0.12549]
[1734519018919,8.9494833,217.2,217.14,8.9494833]
[1734519022426,8.9494833,217.19,217.12,8.9494833]
[1734519022867,8.9494833,217.18,217.07,1.6336]
[1734519023142,8.9494833,217.17,217.11,8.9494833]
[1734519024516,8.9494833,217.18,217.11,8.9494833]
[1734519027848,8.9494833,217.15,217.09,8.9494833]
[1734519030432,8.9494833,217.11,217.02,1.0]
[1734519030740,8.9494833,217.1,217.04,8.9494833]
[1734519034258,8.9494833,217.11,217.05,8.9494833]
[1734519035048,8.9494833,217.11,217.04,8.9494833]
[1734519035439,8.9494833,217.11,217.05,8.9494833]
[1734519035634,20.0,217.11,217.07,8.9494833]
[1734519035836,1.85911653,217.18,217.07,8.9494833]
[1734519036054,8.9494833,217.14,217.07,8.9494833]
[1734519036259,1.85911653,217.18,217.09,8.9494833]
[1734519036460,36.079,217.22,217.11,8.9494833]
[1734519036758,8.9494833,217.19,217.12,8.9494833]
[1734519038044,8.9494833,217.2,217.13,8.9494833]
[1734519038263,8.9494833,217.2,217.09,1.5492]
[1734519038264,8.9494833,217.2,217.14,8.9494833]
[1734519042645,8.9494833,217.21,217.14,8.9494833]
[1734519044769,8.9494833,217.2,217.13,8.9494833]
[1734519045081,8.9494833,217.17,217.09,1.5492]
[1734519045285,8.9494833,217.17,217.11,8.9494833]
[1734519045781,8.9494833,217.16,217.09,1.5492]
[1734519045945,8.9494833,217.15,217.09,1.5492]
[1734519046139,8.9494833,217.16,217.09,10.4986833]
[1734519046759,8.9494833,217.17,217.1,8.9494833]
[1734519047134,30.0,217.2,217.09,10.4986833]
[1734519047135,8.9494833,217.16,217.09,10.4986833]
[1734519047334,8.9494833,217.16,217.1,8.9494833]
[1734519050174,57.66,217.23,217.1,8.9494833]
[1734519050355,8.9494833,217.18,217.11,8.9494833]
[1734519051864,8.9494833,217.17,217.1,8.9494833]
[1734519052370,8.9494833,217.18,217.11,8.9494833]
[1734519057355,8.9494833,217.19,217.12,8.9494833]
[1734519057554,8.9494833,217.18,217.11,8.9494833]
[1734519058780,1.89156193,217.25,217.12,9.0749733]
[1734519059075,8.9494833,217.22,217.15,8.9494833]
[1734519059278,8.9494833,217.2,217.09,2.23987212]
[1734519059453,8.9494833,217.2,217.13,8.9494833]
[1734519060995,8.9494833,217.21,217.14,8.9494833]
[1734519061282,20.0,217.23,217.1,0.12549]
[1734519061283,8.9494833,217.2,217.13,8.9494833]
[1734519062758,8.9494833,217.2,217.12,8.9494833]
[1734519062962,8.9494833,217.19,217.12,8.9494833]
[1734519063851,8.9494833,217.2,217.13,8.9494833]
[1734519064067,20.0,217.23,217.14,8.9494833]
[1734519064375,8.9494833,217.22,217.15,8.9494833]
[1734519065955,39.25985552,217.27,217.18,8.9494833]
[1734519065956,6.4442,217.27,217.18,8.9494833]
[1734519066149,8.9494833,217.25,217.18,8.9494833]
[1734519068882,23.776884,217.31,217.2,8.9494833]
[1734519069064,8.9494833,217.27,217.2,8.9494833]
[1734519071313,8.9494833,217.23,217.17,1.5919]
[1734519071792,8.9494833,217.24,217.17,10.5413833]
[1734519071997,57.66,217.3,217.18,8.9494833]
[1734519071998,8.9494833,217.25,217.18,8.9494833]
[1734519073268,8.9494833,217.24,217.17,10.5413833]
[1734519073476,8.9494833,217.23,217.17,10.5413833]
[1734519077404,8.9494833,217.24,217.17,10.5413833]
[1734519077628,8.9494833,217.25,217.19,8.9494833]
[1734519078524,8.9494833,217.25,217.18,9.0749733]
[1734519078875,8.9494833,217.25,217.17,1.5919]
[1734519079078,8.9494833,217.25,217.18,8.9494833]
[1734519079489,8.9494833,217.24,217.17,1.5919]
[1734519079706,8.9494833,217.24,217.17,10.5413833]
[1734519079989,8.9494833,217.23,217.17,1.5919]
[1734519081916,8.9494833,217.24,217.17,10.5413833]
[1734519082415,8.9494833,217.24,217.18,8.9494833]
[1734519082636,8.9494833,217.23,217.17,1.5919]
[1734519082963,8.9494833,217.23,217.16,8.9494833]
[1734519083596,8.9494833,217.24,217.17,8.9494833]
[1734519086821,20.0,217.27,217.2,8.9494833]
[1734519087005,28.9494833,217.27,217.2,8.9494833]
[1734519087619,8.9494833,217.26,217.19,8.9494833]
[1734519088216,8.9494833,217.25,217.15,0.81609196]
[1734519088412,8.9494833,217.25,217.18,8.9494833]
[1734519088602,8.9494833,217.23,217.17,8.9494833]
[1734519089531,8.9494833,217.23,217.16,8.9494833]
[1734519089737,8.9494833,217.24,217.17,8.9494833]
[1734519090632,8.9494833,217.25,217.18,8.9494833]
[1734519092622,8.9494833,217.25,217.19,8.9494833]
[1734519094010,32.7263673,217.26,217.19,8.9494833]
[1734519094242,8.9494833,217.24,217.16,0.12549]
[1734519094542,23.776884,217.26,217.18,8.9494833]
[1734519094715,8.9494833,217.25,217.18,8.9494833]